bitfinex-derivatives/quotes_ETHF0:USTF0_20240907
["timestamp","ask_amount","ask_price","bid_price","bid_amount"]
[1725736246726,0.43732,2286.8,2286.6,0.43735]
[1725736247128,1.1542,2286.9,2286.7,0.43732]
[1725736247435,0.4373,2286.9,2286.7,0.43732]
[1725736247636,0.4373,2286.9,2286.8,0.374]
[1725736248232,4.8101,2286.9,2286.8,0.374]
[1725736250921,4.8101,2286.9,2286.6,6.66514]
[1725736250922,0.43732,2286.8,2286.6,6.66514]
[1725736251230,0.43733,2286.7,2286.6,6.2278]
[1725736251431,2.6452453,2287.0,2286.6,6.2278]
[1725736251927,0.43732,2286.8,2286.6,6.66514]
[1725736252329,0.43732,2286.8,2286.6,6.2278]
[1725736252630,0.43732,2286.8,2286.6,3.02]
[1725736253022,0.43732,2286.8,2286.6,3.45735]
[1725736253435,0.43732,2286.8,2286.6,3.02]
[1725736253937,0.43732,2286.8,2286.6,3.45734]
[1725736254642,0.43734,2286.7,2286.5,0.83257]
[1725736255632,0.43735,2286.6,2286.5,0.3952]
[1725736255840,0.81595,2286.6,2286.5,0.3952]
[1725736256035,0.43737,2286.5,2286.4,3.3797]
[1725736256230,0.81596,2286.6,2286.4,4.18789]
[1725736256433,0.43737,2286.5,2286.4,3.7505]
[1725736257937,0.3786,2286.6,2286.4,3.7505]
[1725736259040,0.43737,2286.5,2286.4,3.7505]
[1725736259340,0.81596,2286.6,2286.4,4.18789]
[1725736259645,3.1039053,2286.6,2286.4,4.18789]
[1725736260239,3.1039053,2286.6,2286.4,3.7505]
[1725736260240,0.43737,2286.5,2286.4,3.7505]
[1725736260429,3.1039053,2286.6,2286.4,4.18789]
[1725736260630,4.81097,2286.5,2286.4,0.3597]
[1725736260841,1.09347,2286.4,2286.0,3.9801]
[1725736261034,0.43744,2286.1,2286.0,0.7723]
[1725736261232,2.28722657,2286.1,2286.0,0.7723]
[1725736261437,2.72466657,2286.1,2286.0,0.7723]
[1725736262035,2.72466657,2286.1,2286.0,2.0323]
[1725736263634,0.43744,2286.1,2286.0,2.0323]
[1725736263937,2.72519593,2286.1,2286.0,0.7723]
[1725736264245,7.09965158,2286.1,2286.0,0.3938]
[1725736264440,7.67087322,2286.1,2286.0,0.3938]
[1725736264633,0.43748,2285.9,2285.8,0.3919]
[1725736264838,2.28783772,2285.9,2285.7,0.7331]
[1725736265040,2.28788319,2285.9,2285.7,1.17062]
[1725736265239,2.28788319,2285.9,2285.8,3.4675]
[1725736266337,2.28788319,2286.0,2285.8,3.4675]
[1725736267551,2.72533319,2286.1,2285.8,3.4675]
[1725736268445,0.43745,2286.1,2285.8,3.4675]
[1725736270546,0.43743,2286.2,2286.0,0.43746]
[1725736270744,0.43743,2286.2,2286.1,0.7532]
[1725736270942,0.43743,2286.2,2286.1,1.1178]
[1725736274743,0.43743,2286.2,2286.1,0.3682]
[1725736276347,0.3738,2286.3,2286.1,0.80564]
[1725736276548,0.43742,2286.2,2286.1,0.80564]
[1725736277343,0.43742,2286.2,2286.1,0.3682]
[1725736280849,0.43746,2286.0,2285.9,0.3923]
[1725736281054,0.4375,2285.8,2285.7,0.3795]
[1725736281359,1.48686,2286.1,2285.7,1.18471]
[1725736281360,0.79829,2285.9,2285.7,1.18471]
[1725736281556,0.3608,2285.9,2285.7,1.18471]
[1725736281954,0.4375,2285.8,2285.7,1.18471]
[1725736282154,0.4375,2285.8,2285.7,0.7472]
[1725736282352,0.4375,2285.8,2285.7,1.18472]
[1725736282554,0.79829,2285.9,2285.7,1.18472]
[1725736283957,0.79829,2285.9,2285.7,2.44472]
[1725736285564,0.4375,2285.8,2285.7,2.44472]
[1725736286569,0.79829,2285.9,2285.7,2.44472]
[1725736286866,0.79829,2285.9,2285.8,0.4375]
[1725736287863,0.79829,2285.9,2285.7,2.44471]
[1725736289164,0.4375,2285.8,2285.7,2.44471]
[1725736289477,0.79829,2285.9,2285.7,2.44471]
[1725736290661,0.79829,2285.9,2285.7,2.80231]
[1725736293877,0.4375,2285.8,2285.7,2.80231]
[1725736295673,0.4375,2285.8,2285.7,1.1048]
[1725736296473,2.72538319,2285.8,2285.7,0.3795]
[1725736299470,2.72538319,2285.8,2285.7,0.7731]
[1725736299880,0.43756,2285.5,2285.4,0.368]
[1725736300182,0.43758,2285.4,2285.3,3.9732]
[1725736300487,2.72823503,2285.4,2285.3,4.3467]
[1725736301376,0.43758,2285.4,2285.3,4.3467]
[1725736301575,2.72823503,2285.4,2285.3,4.3467]
[1725736303581,2.72823503,2285.4,2285.3,1.1389]
[1725736305588,0.43758,2285.4,2285.3,1.1389]
[1725736306476,0.43758,2285.4,2284.8,1.14365074]
[1725736306477,0.43764,2285.1,2284.9,1.26]
[1725736306774,2.72982689,2285.1,2284.9,0.7522]
[1725736306982,3.08963689,2285.0,2284.9,0.7522]
[1725736307482,3.08892718,2285.0,2284.9,0.3909]
[1725736308083,0.79745,2285.0,2284.9,0.3909]
[1725736308273,3.08804447,2285.0,2284.9,0.3909]
[1725736309182,0.79745,2285.0,2284.9,0.3909]
[1725736309380,0.4377,2284.8,2284.6,2.43502]
[1725736309581,0.4377,2284.8,2284.6,2.82362]
[1725736310084,2.72742719,2284.9,2284.7,0.43771]
[1725736310285,0.3598,2285.0,2284.6,2.82362]
[1725736310286,0.43769,2284.8,2284.6,2.82362]
[1725736311387,0.43768,2284.9,2284.7,0.43771]
[1725736311579,0.43769,2284.8,2284.6,2.82362]
[1725736312086,0.43769,2284.9,2284.7,0.43771]
[1725736312477,0.43769,2284.9,2284.7,1.69771]
[1725736312679,0.3598,2285.0,2284.7,1.26]
[1725736312886,0.3598,2285.0,2284.8,0.43769]
[1725736313076,0.3598,2285.0,2284.7,1.26]
[1725736313680,0.43767,2284.9,2284.7,1.6977]
[1725736314192,0.43768,2284.9,2284.7,1.6977]
[1725736316781,2.72735719,2285.2,2284.9,0.43766]
[1725736316979,0.43762,2285.2,2285.0,1.105]
[1725736318185,2.64773719,2285.3,2285.0,1.105]
[1725736318493,0.358,2285.3,2285.0,1.54264]
[1725736318693,0.43762,2285.2,2285.0,1.54264]
[1725736319890,0.7956,2285.3,2285.0,1.54264]
[1725736320487,0.358,2285.3,2285.0,1.54264]
[1725736320693,0.358,2285.3,2285.1,0.43763]
[1725736321381,0.7956,2285.3,2285.1,0.43763]
[1725736321797,0.7956,2285.3,2285.0,1.54264]
[1725736323299,3.08533719,2285.3,2285.0,1.54264]
[1725736323495,3.08533719,2285.3,2285.0,1.105]
[1725736323701,0.7956,2285.3,2285.0,1.105]
[1725736323903,3.08533719,2285.3,2285.0,1.54264]
[1725736324298,0.7956,2285.3,2285.0,1.54264]
[1725736324806,0.7956,2285.3,2285.1,0.43763]
[1725736325109,3.08533719,2285.3,2285.1,0.43763]
[1725736326101,2.64773719,2285.3,2285.1,0.43763]
[1725736326493,3.08533719,2285.3,2285.1,0.43763]
[1725736327403,0.43762,2285.2,2285.0,1.54264]
[1725736327603,3.08534719,2285.3,2285.0,1.54264]
[1725736328098,0.43762,2285.2,2285.0,0.3866]
[1725736328296,0.43763,2285.1,2284.8,3.64548]
[1725736328496,0.43763,2285.1,2284.8,4.02838]
[1725736328702,0.3692,2285.0,2284.8,4.02838]
[1725736329005,0.3692,2285.0,2284.9,0.43767]
[1725736329501,2.72736719,2285.2,2284.9,0.43767]
[1725736329707,0.3692,2285.2,2285.1,0.43763]
[1725736330407,0.3692,2285.2,2285.1,0.81553]
[1725736330992,2.28973719,2285.3,2285.2,0.43762]
[1725736331296,2.65113719,2285.4,2285.2,0.3919]
[1725736331499,0.3614,2285.4,2285.3,0.4376]
[1725736331700,2.65113719,2285.4,2285.2,0.8295]
[1725736332295,3.08871719,2285.4,2285.2,0.8295]
[1725736332700,4.34871719,2285.4,2285.2,0.3919]
[1725736332905,2.72733719,2285.3,2285.2,0.3919]
[1725736334303,7.10333719,2285.3,2285.0,0.43764]
[1725736334502,2.72733719,2285.3,2285.0,0.43764]
[1725736334896,2.28973719,2285.2,2285.0,0.43764]
[1725736335405,0.3805,2285.1,2285.0,0.43764]
[1725736336194,2.67023719,2285.1,2285.0,0.43764]
[1725736336810,2.67023719,2285.1,2284.9,1.56536]
[1725736339505,2.67028338,2285.1,2285.0,0.43765]
[1725736343109,0.3805,2285.1,2285.0,0.43765]
[1725736343305,3.24573362,2285.1,2285.0,0.43765]
[1725736343507,0.3805,2285.1,2285.0,0.43765]
[1725736343813,0.3805,2285.1,2284.9,1.56536]
[1725736343814,0.81813,2285.1,2284.9,1.56536]
[1725736343999,3.24573362,2285.1,2285.0,0.43765]
[1725736344203,3.68336362,2285.1,2284.9,0.43767]
[1725736344403,2.29293115,2285.0,2284.8,0.43767]
[1725736344602,2.29293115,2284.9,2284.8,0.43767]
[1725736349018,2.29293115,2284.9,2284.8,3.64547]
[1725736350007,2.29293115,2284.9,2284.8,0.43767]
[1725736350208,2.86523362,2285.0,2284.8,3.64547]
[1725736350413,2.86523362,2285.0,2284.9,0.43767]
[1725736350617,2.86523362,2285.0,2284.9,0.80147]
[1725736351018,2.86523362,2285.0,2284.9,0.43767]
[1725736351209,0.81815,2285.1,2284.9,0.43767]
[1725736351612,2.86965693,2285.0,2284.9,0.43767]
[1725736351812,0.81815,2285.1,2284.9,0.43767]
[1725736352725,0.43765,2285.0,2284.8,3.64548]
[1725736352915,2.87023575,2284.9,2284.8,3.64548]
[1725736353819,0.43769,2284.9,2284.7,0.4377]
[1725736354014,3.62497649,2284.8,2284.7,0.4377]
[1725736360326,3.26507649,2284.8,2284.7,0.4377]
[1725736364929,3.70277649,2284.8,2284.6,2.43741]
[1725736365230,3.70277649,2284.8,2284.7,0.43771]
[1725736365832,0.43771,2284.7,2284.6,0.81903]
[1725736366027,0.43771,2284.7,2284.6,0.43773]
[1725736366028,1.18291,2284.7,2284.6,0.43773]
[1725736367022,0.7452,2284.7,2284.6,0.43773]
[1725736367531,1.18291,2284.7,2284.6,0.43773]
[1725736367727,1.18291,2284.7,2284.5,3.64554]
[1725736367936,2.86970978,2284.6,2284.5,3.64554]
[1725736369725,3.61490978,2284.7,2284.6,0.43773]
[1725736370334,4.05261978,2284.7,2284.6,0.43773]
[1725736372237,1.18291,2284.7,2284.6,0.43773]
[1725736377332,4.05061761,2284.7,2284.6,0.43773]
[1725736377537,0.81501,2284.7,2284.6,0.43773]
[1725736377937,3.68283482,2284.7,2284.6,0.43773]
[1725736378536,0.81501,2284.7,2284.6,0.43773]
[1725736380035,3.68301284,2284.7,2284.6,0.43773]
[1725736381042,3.24530284,2284.7,2284.6,0.43773]
[1725736381448,3.68301284,2284.7,2284.6,0.43773]
[1725736385542,0.43773,2284.6,2284.5,3.2078]
[1725736385737,0.43773,2284.6,2284.4,0.43775]
[1725736385941,3.22548148,2284.5,2284.4,0.43775]
[1725736386343,3.59818148,2284.5,2284.4,0.43775]
[1725736387141,3.59818148,2284.5,2284.3,1.1642]
[1725736387142,3.22548148,2284.5,2284.3,1.1642]
[1725736387349,3.22548148,2284.5,2284.4,0.43777]
[1725736387551,0.3571,2284.5,2284.4,0.43777]
[1725736387747,3.43789185,2284.9,2284.4,13.9779]
[1725736388053,6.25616903,2285.0,2284.4,13.9779]
[1725736388054,3.76639064,2285.0,2284.9,0.43767]
[1725736388447,0.32849879,2285.0,2284.9,0.43767]
[1725736388752,3.65681002,2285.1,2285.0,0.43765]
[1725736388753,3.76639064,2285.1,2285.0,0.43765]
[1725736388943,0.32849879,2285.1,2285.0,3.64545]
[1725736389141,2.86759355,2285.1,2285.0,8.02145]
[1725736389545,2.86759355,2285.1,2285.0,3.64545]
[1725736390448,2.86759355,2285.1,2285.0,0.43765]
[1725736390651,0.3875,2285.2,2285.1,0.43763]
[1725736392347,0.3875,2285.2,2285.0,0.43765]
[1725736392645,2.86728189,2285.1,2285.0,0.43765]
[1725736394249,2.86728189,2285.1,2285.0,3.64545]
[1725736395755,2.86728189,2285.2,2285.1,0.43763]
[1725736396152,3.87547185,2285.4,2285.2,0.43761]
[1725736396356,4.23477185,2285.4,2285.2,0.43761]
[1725736396980,0.4376,2285.3,2285.1,0.43762]
[1725736397258,3.79719185,2285.4,2285.0,3.2078]
[1725736397457,2.86650089,2285.1,2285.0,3.64545]
[1725736398363,2.86650089,2285.2,2285.1,0.43763]
[1725736398667,0.4376,2285.3,2285.1,0.43763]
[1725736398961,0.4376,2285.3,2285.2,0.43762]
[1725736399351,0.4376,2285.3,2285.1,0.43762]
[1725736399655,2.86624001,2285.2,2285.1,0.43762]
[1725736399957,0.4376,2285.3,2285.1,0.43762]
[1725736400663,2.86616891,2285.2,2285.1,0.43762]
[1725736403751,3.30378891,2285.2,2285.0,0.43764]
[1725736403959,0.369,2285.1,2285.0,0.43764]
[1725736404167,2.86616891,2285.2,2285.1,0.43763]
[1725736407768,3.23516891,2285.3,2285.2,0.43762]
[1725736408368,2.29187309,2285.3,2285.2,13.38249305]
[1725736408664,2.86616891,2285.9,2285.4,0.43758]
[1725736408974,3.22982104,2286.1,2286.0,0.43746]
[1725736409175,2.86372104,2286.2,2286.1,0.43744]
[1725736409470,2.86372104,2286.3,2286.1,0.43744]
[1725736409667,4.03531104,2286.4,2286.1,0.43744]
[1725736410260,2.86372104,2286.2,2286.1,0.43744]
[1725736410467,2.86372104,2286.3,2286.1,0.43744]
[1725736411059,2.86372104,2286.2,2286.0,0.3796]
[1725736411367,3.30113104,2286.3,2286.0,0.81706]
[1725736412376,1.9942,2286.4,2286.1,3.64523]
[1725736412377,3.59792104,2286.4,2286.1,3.64523]
[1725736412671,0.7342,2286.4,2286.1,3.64523]
[1725736412866,0.7342,2286.4,2286.2,0.43742]
[1725736413068,0.7342,2286.4,2286.1,3.64524]
[1725736414967,0.7342,2286.4,2286.1,3.2078]
[1725736415576,0.7342,2286.4,2286.2,0.43741]
[1725736417668,1.17159,2286.4,2286.2,0.43741]
[1725736419378,0.7342,2286.4,2286.2,0.43741]
[1725736419679,1.17159,2286.4,2286.2,0.43741]
[1725736420873,0.7342,2286.4,2286.1,3.2078]
[1725736421066,0.4374,2286.3,2286.1,3.64524]
[1725736421778,0.4374,2286.3,2286.1,0.43744]
[1725736422183,1.1716,2286.4,2286.2,0.43742]
[1725736423278,3.942,2286.4,2285.8,4.4678]
[1725736423474,0.43747,2286.0,2285.8,0.43749]
[1725736423669,0.3935,2285.9,2285.8,0.43749]
[1725736429974,0.83098,2285.9,2285.8,0.43749]
[1725736430184,0.3935,2285.9,2285.8,0.43749]
[1725736431277,0.81307,2286.0,2285.8,0.43749]
[1725736431278,0.3756,2286.0,2285.9,0.43748]
[1725736431585,0.83005,2286.1,2285.9,0.43748]
[1725736432178,0.3926,2286.1,2286.0,0.43746]
[1725736432476,0.83004,2286.1,2286.0,0.43746]
[1725736433174,0.83004,2286.1,2285.9,0.43747]
[1725736433480,0.43747,2286.0,2285.8,4.90528]
[1725736433670,0.3663,2285.9,2285.8,4.90528]
[1725736437781,0.83006,2286.1,2286.0,0.43746]
[1725736440181,0.83006,2286.1,2285.9,0.43747]
[1725736440384,0.43746,2286.0,2285.9,0.43747]
[1725736440877,0.43748,2286.0,2285.8,3.64529]
[1725736441082,0.43748,2286.0,2285.8,0.43749]
[1725736441776,0.43748,2285.9,2285.8,0.43749]
[1725736442590,0.43748,2285.9,2285.7,0.43751]
[1725736442784,0.43748,2285.9,2285.6,1.26]
[1725736442785,1.555,2285.8,2285.6,1.69753]
[1725736443785,1.555,2285.8,2285.7,0.43752]
[1725736444984,1.1175,2285.8,2285.7,0.43752]
[1725736445486,1.555,2285.8,2285.6,1.26]
[1725736446080,1.55501,2285.8,2285.6,0.43753]
[1725736446288,0.3688,2285.8,2285.7,0.43752]
[1725736448690,0.8063,2285.8,2285.7,0.43752]
[1725736448887,0.3688,2285.8,2285.7,0.43752]
[1725736451394,2.65165335,2285.8,2285.7,0.43752]
[1725736453887,0.3688,2285.8,2285.7,0.43752]
[1725736454191,2.66034749,2285.8,2285.7,0.43752]
[1725736454389,3.2214259,2285.8,2285.7,0.43752]
[1725736454696,0.4375,2285.9,2285.7,0.43752]
[1725736454697,2.8526259,2285.9,2285.8,0.4375]
[1725736454994,1.21417,2286.0,2285.8,0.4375]
[1725736455389,2.86591758,2285.9,2285.8,0.8064]
[1725736455593,0.43747,2286.0,2285.9,0.43748]
[1725736455799,0.43747,2286.0,2285.9,0.79778]
[1725736455999,0.43747,2286.0,2285.9,0.3603]
[1725736459298,0.43748,2285.9,2285.8,1.18089]
[1725736459501,3.30345338,2285.9,2285.8,1.18089]
[1725736460496,3.30345338,2285.9,2285.8,0.80639]
[1725736461606,0.43748,2285.9,2285.8,0.80639]
[1725736461800,3.30393322,2285.9,2285.8,0.80639]
[1725736462008,0.43748,2285.9,2285.8,0.80639]
[1725736464298,3.80795109,2286.1,2286.0,0.43746]
[1725736464492,0.3848,2286.1,2286.0,0.43746]
[1725736465497,3.42315109,2286.3,2285.8,0.3689]
[1725736465703,3.24429098,2286.0,2285.9,0.43748]
[1725736466501,3.24470068,2286.0,2285.9,0.43748]
[1725736467198,0.3769,2286.0,2285.9,0.43748]
[1725736467907,0.81436,2286.0,2285.8,0.3689]
[1725736468112,2.86819044,2285.9,2285.8,0.80639]
[1725736468407,0.81436,2286.0,2285.8,0.80639]
[1725736469903,0.81436,2286.0,2285.8,0.43749]
[1725736470506,0.43748,2285.9,2285.8,0.43749]
[1725736470710,0.43748,2285.9,2285.7,4.02651]
[1725736470915,0.43748,2285.9,2285.8,0.4375]
[1725736471908,4.23753109,2286.0,2285.8,0.4375]
[1725736472607,0.43748,2285.9,2285.8,0.4375]
[1725736475106,0.43748,2285.9,2285.7,4.02651]
[1725736475601,0.43748,2285.9,2285.8,0.4375]
[1725736476503,4.23752109,2286.0,2285.9,0.43748]
[1725736476702,3.80005109,2286.0,2285.9,0.43748]
[1725736476911,0.3769,2286.0,2285.9,0.43748]
[1725736477113,3.78265109,2286.1,2286.0,0.43746]
[1725736477909,0.3595,2286.1,2286.0,0.43746]
[1725736478903,0.79694,2286.1,2285.9,0.43747]
[1725736479103,0.3595,2286.1,2285.8,0.43749]
[1725736479307,2.86913683,2285.9,2285.8,0.4375]
[1725736479715,2.86913683,2285.9,2285.8,4.8119]
[1725736482714,2.86913683,2285.9,2285.8,0.4375]
[1725736483112,2.86913683,2285.9,2285.8,4.8119]
[1725736483616,2.86913683,2285.9,2285.8,8.0197]
[1725736483816,2.86913683,2285.9,2285.8,4.73906]
[1725736484115,2.86913683,2286.0,2285.9,0.43748]
[1725736484317,2.86913683,2286.0,2285.9,1.69748]
[1725736484519,2.86913683,2286.0,2285.9,6.07188]
[1725736484911,2.86913683,2286.1,2286.0,0.43746]
[1725736485111,2.86913683,2286.2,2286.1,0.43744]
[1725736485315,2.86913683,2286.2,2286.1,4.00274]
[1725736486118,2.86913683,2286.3,2286.2,0.43742]
[1725736486915,1.19419,2286.4,2286.2,0.43742]
[1725736487313,1.6974,2286.3,2286.1,0.3575]
[1725736487620,2.86677769,2286.2,2286.1,0.3575]
[1725736487925,2.86677769,2286.2,2286.1,0.79494]
[1725736489018,2.86677769,2286.2,2286.1,0.43744]
[1725736490521,3.30420769,2286.2,2286.0,0.81465]
[1725736490731,3.61907769,2286.1,2286.0,0.81465]
[1725736491119,3.61907769,2286.1,2286.0,0.43745]
[1725736492931,0.7523,2286.1,2286.0,0.43745]
[1725736494227,1.18974,2286.1,2286.0,0.43745]
[1725736494426,0.7523,2286.1,2286.0,0.43745]
[1725736500333,1.18974,2286.1,2286.0,0.43745]
[1725736500530,1.18974,2286.1,2285.9,0.80087]
[1725736500732,2.8666532,2286.0,2285.9,0.3634]
[1725736500934,4.0563932,2286.1,2285.9,0.3634]
[1725736501131,4.0563932,2286.1,2286.0,0.43746]
[1725736501333,3.2557532,2286.1,2286.0,0.43746]
[1725736501735,3.6931932,2286.1,2286.0,0.43746]
[1725736502831,7.6301532,2286.1,2285.8,3.2078]
[1725736503034,0.747,2286.0,2285.8,3.2078]
[1725736503232,2.86717533,2285.9,2285.8,4.9053]
[1725736504229,3.22937533,2286.0,2285.9,0.43748]
[1725736504429,3.22937533,2286.0,2285.9,0.79648]
[1725736505434,2.86717533,2286.1,2286.0,0.43746]
[1725736505634,2.86717533,2286.1,2286.0,0.82176]
[1725736508242,0.80963,2286.2,2286.0,0.82176]
[1725736509548,0.80963,2286.2,2286.0,4.02956]
[1725736510737,0.80963,2286.2,2286.1,0.43744]
[1725736511136,0.3722,2286.2,2286.1,0.43744]
[1725736511336,0.80962,2286.2,2286.1,0.43744]
[1725736512533,0.80962,2286.2,2286.0,4.02955]
[1725736513543,0.80962,2286.2,2286.0,0.82175]
[1725736513847,0.80962,2286.2,2286.0,4.02955]
[1725736514948,0.80962,2286.2,2286.1,0.43744]
[1725736516045,0.80962,2286.2,2286.0,0.82175]
[1725736516244,0.80962,2286.2,2286.0,4.02955]
[1725736516245,2.86756719,2286.1,2286.0,4.02955]
[1725736516941,2.86756719,2286.1,2286.0,0.82175]
[1725736517141,2.86756719,2286.1,2286.0,4.02955]
[1725736520043,3.30500719,2286.1,2286.0,4.02955]
[1725736520645,3.30500719,2286.1,2286.0,4.40685]
[1725736522645,0.43744,2286.1,2286.0,4.40685]
[1725736524562,0.80963,2286.2,2286.1,0.43744]
[1725736531162,4.23278109,2286.2,2286.1,0.43744]
[1725736531358,0.80963,2286.2,2286.1,0.43744]
[1725736534362,1.17093,2286.2,2286.1,0.43744]
[1725736534564,0.43744,2286.1,2286.0,3.2078]
[1725736534861,1.09373,2285.9,2285.4,6.3448]
[1725736535064,3.4453701,2285.6,2285.5,0.43755]
[1725736535559,3.8829101,2285.7,2285.5,0.43755]
[1725736535765,0.43754,2285.6,2285.4,4.42847]
[1725736535956,3.8829101,2285.6,2285.4,4.42847]
[1725736536260,0.3726,2285.5,2285.4,4.42847]
[1725736540762,2.86774572,2285.9,2285.4,15.6261]
[1725736540964,2.86774572,2286.0,2285.8,4.4678]
[1725736541159,0.3682,2286.2,2286.1,0.43744]
[1725736541359,3.23356059,2286.2,2286.1,0.43744]
[1725736541756,3.67098059,2286.2,2286.1,0.43744]
[1725736542157,3.23356059,2286.2,2286.1,0.43744]
[1725736544167,3.67098059,2286.2,2286.0,0.43745]
[1725736545565,3.23356059,2286.2,2286.1,0.43744]
[1725736546271,0.3682,2286.2,2286.1,0.43744]
[1725736546878,3.23344998,2286.2,2286.1,0.43744]
[1725736547370,0.3682,2286.2,2286.1,0.43744]
[1725736547568,3.23350799,2286.2,2286.1,0.43744]
[1725736548165,3.67092799,2286.2,2286.1,0.43744]
[1725736548560,0.80562,2286.2,2286.1,0.43744]
[1725736548965,0.3682,2286.2,2286.1,0.43744]
[1725736550659,3.67084153,2286.2,2286.1,0.43744]
[1725736551273,0.80562,2286.2,2286.1,0.43744]
[1725736551475,0.3682,2286.2,2286.1,0.43744]
[1725736551865,0.80562,2286.2,2286.1,0.43744]
[1725736553071,3.2334245,2286.2,2286.1,3.64524]
[1725736553272,3.6708946,2286.2,2286.0,0.43745]
[1725736553465,3.6708946,2286.2,2286.1,0.43744]
[1725736554266,0.43745,2286.1,2286.0,0.43745]
[1725736554466,3.3027146,2286.1,2286.0,0.43745]
[1725736555571,0.43745,2286.1,2286.0,0.43745]
[1725736555964,0.43745,2286.1,2285.9,0.7867]
[1725736556163,2.8652646,2286.0,2285.5,6.3448]
[1725736556371,0.43748,2285.9,2285.6,0.3812]
[1725736556574,0.3717,2285.9,2285.8,0.4375]
[1725736557276,0.80919,2285.9,2285.7,0.43751]
[1725736559373,0.4375,2285.8,2285.7,0.43751]
[1725736559870,3.6744546,2285.9,2285.7,0.43751]
[1725736560463,3.6744546,2285.9,2285.8,0.4375]
[1725736560777,0.80919,2285.9,2285.8,0.4375]
[1725736563073,3.6744546,2285.9,2285.8,0.4375]
[1725736563579,0.80919,2285.9,2285.8,0.4375]
[1725736563973,2.8652646,2286.0,2285.9,0.43748]
[1725736564183,2.8652646,2286.1,2286.0,0.43746]
[1725736565075,0.82004,2286.2,2286.1,0.43744]
[1725736565575,0.82004,2286.2,2286.0,0.43745]
[1725736565778,0.82004,2286.2,2286.0,0.43746]
[1725736565779,3.30255704,2286.1,2286.0,0.43746]
[1725736567780,0.43746,2286.0,2285.9,1.59487]
[1725736567977,3.66316704,2286.0,2285.9,0.43747]
[1725736568178,0.79806,2286.0,2285.9,0.43747]
[1725736568377,0.3606,2286.0,2285.9,0.43747]
[1725736569282,2.86510704,2286.1,2286.0,0.43746]
[1725736570287,0.3768,2286.3,2286.2,0.43742]
[1725736570477,0.7412,2286.3,2286.1,3.64523]
[1725736570682,2.86503246,2286.2,2286.1,3.64523]
[1725736571484,3.30245246,2286.2,2286.1,0.43743]
[1725736573286,0.43744,2286.1,2286.0,0.43745]
[1725736573485,3.30247246,2286.1,2286.0,0.43745]
[1725736573788,3.30246246,2286.2,2286.0,0.43745]
[1725736574890,3.30246246,2286.2,2286.1,0.3706]
[1725736575287,3.30246246,2286.2,2286.1,0.80804]
[1725736576882,3.30246246,2286.2,2286.1,0.3706]
[1725736577283,3.30246246,2286.2,2286.1,0.80804]
[1725736578581,3.30246246,2286.2,2286.1,4.01584]
[1725736578582,2.86503246,2286.2,2286.1,4.01584]
[1725736583497,2.86503246,2286.2,2285.7,2.73289]
[1725736583498,0.43746,2286.0,2285.9,0.43748]
[1725736583687,3.30430027,2286.0,2285.9,0.43748]
[1725736583886,0.43746,2286.0,2285.9,0.43748]
[1725736584487,0.43745,2286.1,2285.9,0.43748]
[1725736584687,0.43745,2286.1,2285.9,0.43747]
[1725736584886,3.4453701,2286.2,2285.9,0.43747]
[1725736584887,1.17616,2286.0,2285.9,0.43747]
[1725736585088,3.60616095,2286.0,2285.9,0.43747]
[1725736585488,0.7387,2286.0,2285.9,0.43747]
[1725736588092,2.86914211,2286.0,2285.7,6.30738]
[1725736588695,2.86914211,2286.0,2285.9,0.43748]
[1725736590191,2.86914211,2286.0,2285.9,3.64528]
[1725736590986,2.86914211,2286.0,2285.9,0.43748]
[1725736591391,2.86914211,2286.0,2285.9,3.64528]
[1725736592111,2.86914211,2286.0,2285.9,0.43748]
[1725736592594,2.86914211,2286.0,2285.9,3.64528]
[1725736593193,2.86914211,2286.1,2286.0,0.43746]
[1725736593402,2.86914211,2286.1,2286.0,0.83116]
[1725736596899,0.7469,2286.2,2286.1,0.43744]
[1725736597499,1.18432,2286.2,2286.1,0.43744]
[1725736598397,1.18432,2286.2,2286.0,0.43744]
[1725736598593,4.6296901,2286.2,2286.0,0.43744]
[1725736598999,4.6296901,2286.2,2286.1,0.43744]
[1725736603209,4.1922701,2286.2,2286.1,0.43744]
[1725736604006,4.6296901,2286.2,2286.1,0.43744]
[1725736604902,4.1922701,2286.2,2286.1,0.43744]
[1725736605707,0.7469,2286.2,2286.1,0.43744]
[1725736607411,0.3832,2286.2,2286.1,0.43744]
[1725736607605,3.4453701,2286.4,2286.3,1.53092]
[1725736607807,6.09912741,2286.5,2286.4,1.09347]
[1725736607808,2.8696664,2286.5,2286.4,1.09347]
[1725736608011,2.8696664,2286.7,2286.6,0.43735]
[1725736608212,3.2263664,2286.8,2286.6,4.4678]
[1725736608512,3.22593676,2286.8,2286.7,0.82743]
[1725736608716,2.86923676,2286.9,2286.8,0.43731]
[1725736609016,2.8660722,2287.2,2286.8,1.6192]
[1725736609223,2.8660722,2287.2,2287.1,3.64505]
[1725736609405,3.5899722,2287.3,2287.1,3.64504]
[1725736609605,3.5899722,2287.3,2287.1,4.03514]
[1725736609813,2.290406,2287.2,2287.1,4.03514]
[1725736610405,3.014306,2287.3,2287.1,3.64504]
[1725736610601,2.290406,2287.2,2287.1,3.64504]
[1725736611515,3.014306,2287.3,2287.1,3.64504]
[1725736612205,3.014306,2287.3,2287.1,0.43724]
[1725736612401,3.451516,2287.3,2287.0,0.43726]
[1725736613404,1.69725,2287.1,2286.8,4.03549]
[1725736613613,0.3853,2287.0,2286.8,3.64509]
[1725736613911,0.3853,2287.0,2286.9,0.43729]
[1725736619215,0.3853,2287.0,2286.8,3.6451]
[1725736619420,0.7471,2286.9,2286.8,3.6451]
[1725736620420,0.43731,2286.8,2286.5,3.6009]
[1725736620720,0.43731,2286.8,2286.3,3.137]
[1725736620721,0.43739,2286.4,2286.3,3.137]